Cogmind - Beta 14 @@@ ROGUE MODE // 2024.10.18 @ 22:27:57 Player: hoodiehair Result: Destroyed by G-47 Trooper with Particle Gun Performance ------------- Evolutions (2) 1000 Regions Visited (5) 1000 Robots Destroyed (59) 295 Value Destroyed (1596) 1596 Prototype IDs (1) 20 Alien Tech Used (0) 0 Bonus (184) 184 TOTAL SCORE: 4095 Bonus ------- High Alert Combat Kills 118 Follower Combat Kills 66 Cogmind --------- Core Integrity 0/550 Matter 69/300 Energy 100/100 System Corruption 0% Temperature Cool (9) Movement Core (350) Ox6 Location -8/Materials Parts ------- > --- POWER (1) -------- (None) > --- PROPULSION (4) --- (None) > --- UTILITY (4) ------ Large Storage Unit Experimental Sensor Array Melee Analysis Suite > --- WEAPON (2) ------- (None) > --- INVENTORY (15) --- Light Nuclear Core Coolant Injector High-capacity Battery (250) Melee Analysis Suite ECM Suite Heavy EM Pulse Gun Heavy EM Pulse Gun Heavy Particle Gun Grenade Launcher Peak State ------------ > --- POWER ------------ Light Nuclear Core > --- PROPULSION ------- Improved Treads Armored Treads Armored Treads Armored Treads > --- UTILITY ---------- Small Storage Unit Experimental Sensor Array Core Analyzer Hardlight Generator > --- WEAPON ----------- Flail Flail > --- INVENTORY -------- Ion Engine Light Nuclear Core Coolant Injector High-capacity Battery ECM Suite Assault Rifle Grenade Launcher [Rating: 36] Favorites ----------- Power Ion Engine Engine Ion Engine Power Core Light Nuclear Core Propulsion Armored Treads Treads Armored Treads Utility Small Storage Unit Device Hardlight Generator Storage Small Storage Unit Processor Melee Analysis Suite Protection Light Armor Plating Weapon Flail Energy Gun Small Laser Ballistic Gun Light Assault Rifle Ballistic Cannon Flak Cannon Launcher Grenade Launcher Impact Weapon Flail Build | -11 -10 -10 -9 -9 -8 ------- Run | Yrd Mat Min Mat Min Mat Slots Evolved 4 | . . . 2 . 2 Power . | . . . . . . Propulsion 2 | . . . 1 . 1 Utility 2 | . . . 1 . 1 Weapon . | . . . . . . Parts Attached 40 | 6 2 1 9 1 21 Power 5 | 1 . . 1 . 3 Engine 3 | 1 . . . . 2 Core 2 | . . . 1 . 1 Reactor . | . . . . . . Propulsion 11 | 2 . . 4 . 5 Treads 11 | 2 . . 4 . 5 Leg . | . . . . . . Wheel . | . . . . . . Hover . | . . . . . . Flight . | . . . . . . Utility 11 | 1 1 . 2 . 7 Device 4 | . . . 1 . 3 Storage 4 | 1 . . 1 . 2 Processor 2 | . . . . . 2 Hackware . | . . . . . . Protection 1 | . 1 . . . . Artifact . | . . . . . . Weapon 13 | 2 1 1 2 1 6 Energy Gun 3 | 1 . . . . 2 Energy Cannon . | . . . . . . Ballistic Gun 3 | 1 . 1 . . 1 Ballistic Cannon 3 | . . . . . 3 Launcher 1 | . 1 . . . . Special Weapon . | . . . . . . Impact Weapon 3 | . . . 2 1 . Slashing Weapon . | . . . . . . Piercing Weapon . | . . . . . . Special Melee Weapon . | . . . . . . Unidentified Prototypes 1 | . . . . . 1 Parts Lost 12 | . . . . . 12 Power 3 | . . . . . 3 Propulsion 5 | . . . . . 5 Utility 2 | . . . . . 2 Weapon 2 | . . . . . 2 Highest Loss Streak 3 | . . . . . 3 To Critical Strikes . | . . . . . . Average Slot Usage (%) 90 | . 86 100 93 100 84 Engine 6 | . 14 14 7 . 5 Core 3 | . . . 3 11 1 Treads 28 | . 28 28 30 33 25 Device 8 | . . . 4 11 13 Storage 12 | . 14 14 14 11 12 Processor 3 | . . . . . 8 Protection 5 | . 1 14 11 11 . Energy Gun 1 | . 12 . . . 1 Ballistic Gun 3 | . 14 14 2 . . Ballistic Cannon 2 | . . . . . 4 Launcher 1 | . 1 14 2 . . Impact Weapon 10 | . . . 16 22 8 Peak Build Rating 36 | 6 7 7 21 22 36 Average Rating 19 | 4 6 6 13 21 27 On Entrance 10 | . 6 7 7 21 22 Naked Turns . | . . . . . . Heaviest Build 39 | 12 17 18 22 22 39 Greatest Support 83 | 40 40 40 63 63 83 Greatest Overweight (x) 11 | 3 . . . . 11 Average Overweight (x) . | . . . . . . Largest Inventory Capacity 15 | 8 8 8 8 8 15 Average Capacity 10 | 7 8 8 8 8 14 Most Carried 15 | 4 8 8 8 8 15 Average Carried 8 | 2 5 7 7 7 9 Final Capacity 15 | 8 8 8 8 8 15 Final Carried 9 | 4 8 8 8 8 9 Class Distribution -------------------- 83% | Mutant 16% | Gladiator Dominant Class ---------------- Mutant | -10/Materials Mutant | -10/Mines Mutant | -9/Materials Mutant | -9/Mines Mutant | -8/Materials Resources | -11 -10 -10 -9 -9 -8 ----------- Run | Yrd Mat Min Mat Min Mat Matter Collected 851 | 265 16 100 88 10 372 Remotely . | . . . . . . Salvage Created 1519 | 116 59 55 137 105 1047 Parts 81 | 4 8 8 3 11 47 Haulers Intercepted . | . . . . . . Recyclers Shooed 4 | 1 . . . . 3 Parts Field Recycled . | . . . . . . Retrieved Matter . | . . . . . . Parts Self-Destructed . | . . . . . . Prevented . | . . . . . . Kills | -11 -10 -10 -9 -9 -8 ------- Run | Yrd Mat Min Mat Min Mat Combat Hostiles Destroyed 46 | . 3 3 3 6 31 Melee 12 | . . . . 5 7 Guns 4 | . 3 . . . 1 Cannons 17 | . . . . . 17 AOE 4 | . . 3 1 . . Classes Destroyed 11 | 2 2 1 2 1 3 Worker 4 | . . 1 1 . 2 Builder 3 | . . . . 2 1 Tunneler 2 | 1 . 1 . . . Recycler 1 | 1 . . . . . Watcher 3 | . 1 . . . 2 Swarmer 18 | . 3 3 . 6 6 Grunt 16 | . . . 2 . 14 Brawler 1 | . . . . . 1 Duelist 2 | . . . . . 2 Sentry 7 | . . . 1 . 6 Specialist 2 | . . . . . 2 Best Kill Streak 7 | 1 3 3 1 4 7 Combat Bots Only 5 | . 3 3 2 4 5 Max Kills in Single Turn 3 | 1 1 3 1 1 1 Gunslinging . | . . . . . . Exploded 3 | . . 3 1 . . Melee 1 | . . . . 1 1 Uniques/NPCs Destroyed . | . . . . . . Combat | -11 -10 -10 -9 -9 -8 -------- Run | Yrd Mat Min Mat Min Mat Hostile Shots Fired 329 | . 12 3 19 40 255 Missed 84 | . 5 2 3 9 65 Damage Taken 2999 | . 49 36 174 123 2617 Core 607 | . 7 13 21 7 559 Absorbed by Shields 468 | . . . 32 124 312 Core Remaining (%) 95 | 100 . 92 . 93 . Volleys Fired 81 | 5 16 9 4 . 47 Largest 2 | 2 2 2 2 . 2 Hottest 88 | 60 60 50 50 . 88 Shots Fired 142 | 10 32 10 5 . 85 Gun 66 | 10 32 9 4 . 11 Cannon 74 | . . . . . 74 Launcher 2 | . . 1 1 . . Special . | . . . . . . Kinetic 119 | 5 16 9 4 . 85 Thermal 21 | 5 16 . . . . Explosive 2 | . . 1 1 . . Electromagnetic . | . . . . . . Robot Hit Streak 12 | 3 4 2 2 . 12 Robot Miss Streak 9 | 2 4 3 2 . 9 Penetration Max . | . . . . . . Secondary Targets . | . . . . . . Shots Hit Robots 160 | 5 14 4 11 13 113 Core Hits 114 | 3 7 5 4 5 90 Critical Kills 2 | . 1 . 1 . . Critical Parts Destroyed 13 | . . . 2 2 9 Critical Strikes 16 | . 1 . 3 2 10 Destroy 1 | . 1 . . . . Smash 15 | . . . 3 2 10 Melee Attacks 85 | . . . 10 25 50 Impact 85 | . . . 10 25 50 Slashing . | . . . . . . Piercing . | . . . . . . Sneak Attacks 6 | . . . 1 2 3 Combat Hostiles . | . . . . . . Follow-up Attacks 10 | . . . 2 4 4 Damage Inflicted 4023 | 50 142 169 297 558 2807 Guns 332 | 50 142 39 25 . 76 Cannons 1274 | . . . . . 1274 Explosions 152 | . . 130 22 . . Melee 2212 | . . . 250 558 1404 Ramming 53 | . . . . . 53 Kinetic 1488 | 18 56 39 25 . 1350 Thermal 118 | 32 86 . . . . Explosive 152 | . . 130 22 . . Electromagnetic . | . . . . . . Impact 2212 | . . . 250 558 1404 Slashing . | . . . . . . Piercing . | . . . . . . Highest Corruption . | . . . . . . Average Corruption . | . . . . . . Corruption Purged . | . . . . . . Corruption Blocked . | . . . . . . Overload Shots . | . . . . . . Overflow Damage 686 | . . . 78 88 520 Projectiles . | . . . . . . Explosions . | . . . . . . Melee 686 | . . . 78 88 520 Knockbacks 48 | . . . 3 . 45 Impact 9 | . . . 3 . 6 Kinetic 37 | . . . . . 37 Secondary 2 | . . . . . 2 Self-Inflicted Damage 28 | . . 27 . . 1 Shots 1 | . . 1 . . . Rammed 10 | . . 1 . . 9 Targets Rammed 11 | . . 1 . . 10 Kicked . | . . . . . . Crushed 1 | . . . . . 1 Highest Temperature 40 | 40 40 16 . . 13 Average Temperature 16 | 20 17 12 . . 6 Received Heat Transfer 1206 | . . . 54 . 1152 Siege Activations . | . . . . . . Robots Corrupted 14 | . . . 2 2 10 Combat Hostiles 9 | . . . 2 1 6 Parts Fried 19 | . . . 2 3 14 Impact Corruptions 34 | . . . 3 8 23 Robots Melted . | . . . . . . Combat Hostiles . | . . . . . . Parts Melted . | . . . . . . Heat Transferred 275 | 75 200 . . . . Parts Sabotaged . | . . . . . . Parts Stolen . | . . . . . . Parts Stripped . | . . . . . . Power Chain Reactions . | . . . . . . Alert | -11 -10 -10 -9 -9 -8 ------- Run | Yrd Mat Min Mat Min Mat Peak Influence 602 | 10 132 141 181 160 602 Initial 70 | . 6 51 54 70 19 Average 175 | 3 62 106 125 87 297 Maximum Alert Level 2 | . . . . . 2 Low Security (%) 73 | 100 100 100 100 100 37 Level 1 11 | . . . . . 26 Level 2 15 | . . . . . 36 Level 3 . | . . . . . . Level 4 . | . . . . . . Level 5 . | . . . . . . High Security . | . . . . . . Max Security . | . . . . . . Squads Dispatched 13 | . . . 3 . 10 Investigation . | . . . . . . Extermination . | . . . . . . Reinforcement 5 | . . . 3 . 2 Assault . | . . . . . . Garrison 8 | . . . . . 8 Intercept . | . . . . . . Searches Triggered . | . . . . . . Construction Impeded . | . . . . . . Haulers Reinforced . | . . . . . . Active Scanning Responses . | . . . . . . Cargo Convoy Interrupts . | . . . . . . Stealth | -11 -10 -10 -9 -9 -8 --------- Run | Yrd Mat Min Mat Min Mat Distress Signals 7 | . 1 . 1 . 5 Communications Jammed . | . . . . . . Distress Signals . | . . . . . . Times Spotted 67 | . 6 3 3 7 48 Peak Tracking Total 7 | . 4 3 1 4 7 Tactical Retreats 4 | . . . . . 4 Traps | -11 -10 -10 -9 -9 -8 ------- Run | Yrd Mat Min Mat Min Mat Traps Triggered 2 | . . . . . 2 Indirectly . | . . . . . . Trap Hack Attempts . | . . . . . . Triggered . | . . . . . . Disarmed . | . . . . . . Reprogrammed . | . . . . . . Reused . | . . . . . . Traps Extracted . | . . . . . . Installed . | . . . . . . Triggered . | . . . . . . Machines | -11 -10 -10 -9 -9 -8 ---------- Run | Yrd Mat Min Mat Min Mat Machines Disabled . | . . . . . . Max in Single Turn . | . . . . . . Machines Repaired . | . . . . . . Machines Dismantled . | . . . . . . Machines Sabotaged . | . . . . . . Overloaded Fab Kills . | . . . . . . Hacking | -11 -10 -10 -9 -9 -8 --------- Run | Yrd Mat Min Mat Min Mat Machines Accessed 2 | . 2 . . . . Terminals 2 | . 2 . . . . Fabricators . | . . . . . . Repair Stations . | . . . . . . Recycling Units . | . . . . . . Scanalyzers . | . . . . . . Garrison Access . | . . . . . . Total Hacks 2 | . 2 . . . . Successful 1 | . 1 . . . . Failed 1 | . 1 . . . . Catastrophic . | . . . . . . Database Lockouts . | . . . . . . Manual . | . . . . . . Terminals 2 | . 2 . . . . Fabricators . | . . . . . . Repair Stations . | . . . . . . Recycling Units . | . . . . . . Scanalyzers . | . . . . . . Garrison Access . | . . . . . . Terminal Hacks 1 | . 1 . . . . Locate Traps 1 | . 1 . . . . Fabricator Hacks . | . . . . . . Repair Station Hacks . | . . . . . . Recycling Unit Hacks . | . . . . . . Scanalyzer . | . . . . . . Garrison Access Hacks . | . . . . . . Unauthorized Hacks . | . . . . . . Terminals . | . . . . . . Fabricators . | . . . . . . Repair Stations . | . . . . . . Recycling Units . | . . . . . . Scanalyzers . | . . . . . . Garrison Access . | . . . . . . Data Cores Recovered . | . . . . . . Used . | . . . . . . Hacking Detections . | . . . . . . Full Trace Events . | . . . . . . Feedback Events . | . . . . . . Feedback Blocked . | . . . . . . Robot Schematics Acquired . | . . . . . . Robots Built . | . . . . . . Authchips . | . . . . . . Time . | . . . . . . Total Robot Build Rating . | . . . . . . Part Schematics Acquired . | . . . . . . Parts Built . | . . . . . . Authchips . | . . . . . . Time . | . . . . . . Total Part Build Rating . | . . . . . . Parts Repaired . | . . . . . . Time . | . . . . . . Parts Recycled . | . . . . . . Recycled Matter . | . . . . . . Retrieved Matter . | . . . . . . Retrieved Components . | . . . . . . Parts Scanalyzed . | . . . . . . Part Schematics Acquired . | . . . . . . Parts Damaged . | . . . . . . Bothacking | -11 -10 -10 -9 -9 -8 ------------ Run | Yrd Mat Min Mat Min Mat Used RIF Installer . | . . . . . . Robots Hacked . | . . . . . . Non-combat . | . . . . . . Combat . | . . . . . . Robot Hacks Applied . | . . . . . . Relay Couplers Released . | . . . . . . Fabnet Peak Effective % . | . . . . . . Robots Rewired . | . . . . . . Allies Hacked . | . . . . . . Hacks Repelled . | . . . . . . Allies | -11 -10 -10 -9 -9 -8 -------- Run | Yrd Mat Min Mat Min Mat Total Allies 1 | . . . . 1 . Largest Group 1 | . . . . 1 1 Highest-Rated Group 31 | . . . . 31 31 Highest-Rated Ally 31 | . . . . 31 31 Total Orders . | . . . . . . Ally Attacks 12 | . . . . . 12 Total Damage 188 | . . . . . 188 Kills 2 | . . . . . 2 Allies Corrupted . | . . . . . . Allies Melted . | . . . . . . Intel | -11 -10 -10 -9 -9 -8 ------- Run | Yrd Mat Min Mat Min Mat Robot Analysis Total . | . . . . . . Derelict Logs Recovered 1 | . . . . 1 . Drone Launches . | . . . . . . Drone Recoveries . | . . . . . . Exploration | -11 -10 -10 -9 -9 -8 ------------- Run | Yrd Mat Min Mat Min Mat Turns Passed 2822 | 129 338 234 351 584 1186 Spaces Moved 1275 | 70 177 132 179 318 399 Core 58 | 26 . . . . 32 Treads 1217 | 44 177 132 179 318 367 Legs . | . . . . . . Wheels . | . . . . . . Hover . | . . . . . . Flight . | . . . . . . Fastest Speed 50 | 50 160 160 160 166 166 Average Speed 171 | 142 160 160 162 166 194 Slowest Speed 600 | 200 160 160 166 166 600 Overloaded Moves . | . . . . . . Propulsion Burnouts . | . . . . . . Robots Hopped . | . . . . . . Cave-ins Triggered . | . . . . . . Exploration Rate (%) 30 | 5 32 39 11 52 42 Regions Visited 5 Branch Regions 2 Pre-discovered Areas 1 | . . . . 1 . Known Exits Taken . | . . . . . . Unknown Exits Taken 5 | 1 1 1 1 1 . Scrap Searched 3 | . . 1 . 2 . Spaces Dug . | . . . . . . Terrain Destroyed 21 | . . 10 11 . . Melee . | . . . . . . Projectile . | . . . . . . AOE 21 | . . 10 11 . . Terrain Rammed . | . . . . . . Walls Destroyed . | . . . . . . Machines Disabled . | . . . . . . Actions | -11 -10 -10 -9 -9 -8 --------- Run | Yrd Mat Min Mat Min Mat Total 1663 | 90 204 146 226 343 654 Wait 116 | . 2 . 7 . 107 Move 1270 | 69 176 131 178 317 399 Hop . | . . . . . . Pick Up 46 | 10 6 2 11 2 15 Fast Attach . | . . . . . . Attach 36 | 6 2 1 7 1 19 Detach 8 | . 1 . . . 7 Swap 4 | . . . 2 . 2 Drop 18 | . 1 2 9 2 4 Fire 81 | 5 16 9 4 . 47 Melee 73 | . . . 8 21 44 Ram 1 | . . . . . 1 Kick . | . . . . . . Crush 10 | . . 1 . . 9 Escape Stasis . | . . . . . . Rewire . | . . . . . . Trap . | . . . . . . Miscellaneous . | . . . . . . Route ------- -11/Scrapyard -10/Materials -10/Mines -9/Materials -9/Mines (discovered 2 exits: [*Mat x2]) -8/Materials History --------- Turn | Location | Event 6 | -11/Scrapyard | Discovered new exit (range 15) 130 | -11/Scrapyard | Entered Materials 302 | -10/Materials | Build established: Mutant 397 | -10/Materials | Discovered new exit (range 16) 468 | -10/Materials | Entered Mines 482 | -10/Mines | YI-UF0 nonchalantly dropped a Grenade Launcher on the ground 637 | -10/Mines | Discovered new exit (range 10) 702 | -10/Mines | Entered Materials 702 | -9/Materials | Evolved 2 slots: Propulsion x1, Utility x1 718 | -9/Materials | Discovered new exit (range 15) 1013 | -9/Materials | Met 8R-AWN 1053 | -9/Materials | Entered Mines 1055 | -9/Mines | Followed 8R-AWN into the Mines 1100 | -9/Mines | Met a Derelict bent on vengeance 1115 | -9/Mines | Found a damaged Exp. Sensor Array with a note attached 1125 | -9/Mines | Found Prototype Device 1429 | -9/Mines | Discovered new exit (range 8) 1441 | -9/Mines | Discovered new exit (range 12) 1503 | -9/Mines | Learned location of Zion (-6) 1507 | -9/Mines | Escorted by a lone wolf Derelict 1637 | -9/Mines | Entered Materials 1637 | -8/Materials | Accompanied by 1 ally 1637 | -8/Materials | Evolved 2 slots: Propulsion x1, Utility x1 1655 | -8/Materials | Identified Exp. Sensor Array 1796 | -8/Materials | Garrison activated, responded to threat 2060 | -8/Materials | Build established: Gladiator 2205 | -8/Materials | Garrison activated, responded to threat 2316 | -8/Materials | Lost 3 parts (1p1n1u) 2465 | -8/Materials | Core integrity fell below 50% 2523 | -8/Materials | Build established: Mutant 2636 | -8/Materials | Garrison activated, responded to threat 2780 | -8/Materials | Core integrity fell below 20% 2823 | -8/Materials | Destroyed by G-47 Trooper with Particle Gun Last Messages --------------- Core. 02742_ Assault Rifle destroyed. 02752_ Imp. Heat Sink destroyed. 02754_ G-47 Trooper knocked back. 02756_ G-47 Trooper destroyed. 02758_ G-47 Trooper knocked back. 02763_ R-06 Scavenger collects Aluminum Leg. 02771_ R-06 Scavenger collects Lgt. Nuclear Core. 02780_ K-01 Serf collects debris. 02783_ Ion Engine destroyed. 02784_ K-01 Serf cleans the Hadron Collector. 02785_ Flak Cannon destroyed. 02791_ K-01 Serf cleans the Hadron Collector. 02791_ Critical hit (Burn: +37). 02793_ K-01 Serf cleans the Scanalyzer. 02795_ K-01 Serf cleans the Hadron Collector. 02796_ M-13 Machinist repairs G-47 Trooper. 02802_ Slammed into K-01 Serf. 02803_ K-01 Serf cleans the Hadron Collector. Map ----- +----------------------------------------------------+ | ??????????????????????????????????????????? | | ??????????????????????????????????????????? | | ??????????????????????????????????????????? | | ??????????????????????????????????????????? | | ??????????????????????????????????????????? | | ??????????????????????????????????????????? | | ??????????????????????????????????????????? | | ????????????????????????????????????????##+ | | ????????????????????????????????????????# | | ???????????????????????????????????????? | | ????????????????????????????????????????# | | ????????????????????????????????????????# | | ????????????????????????????????????????# | | ????????????????????????????????????????# | | ????????????????????????????????????????#]] | | ????????????????????????????????????????# | | ????????????????????????????????????????# | | ????????????????????????????????????????# | | ???????????????#######??????????######### | | ???????????????#! #??????????# ^ | | ???????????????# ############ ^^? | | ???????????????# !!* ## # """ | | ???????????????# !*! ## ! # ^""" | | ???????????????# !*! ## %#? """ | | ???????????????# ## """ #% | | ???????????????# @ ## """ + | | ???????????????###g#### "" """ #% | | ????????# ### ### S""?""" # #### | | ????????+ T T / "" +% #??# | | ????????# ### t ##############?##### | | ????????# !????## ##????????# = # | | ????????#????????# #?????????# """ # | | ?????????????????# #?????????# "Y" # | | ?????????????????# #?????????# # | | ?????????????????# #?????????# + | | ?????????????????# #?????????# """ """ # | | ?????????????????? ??????????# """ """ ### | | ?????????????????? ??????????# """ """ #?? | | ?????????????????? ??????????###########?? | | ??????????????????#??????????????????????? | | ?????????????????????????????????????????? | | ?????????????????????????????????????????? | | ??????????????????????????????????????????? | | ??????????????????????????????????????????? | | ??????????????????????????????????????????? | | ??????????????????????????????????????????? | | ??????????????????????????????????????????? | | ??????????????????????????????????????????? | | ??????????????????????????????????????????? | | ??????????????????????????????????????????? | +----------------------------------------------------+ Best States ------------- Heat Dissipation 45 Energy Generation 14 Energy Capacity 410 Matter Stores 335 Matter Capacity 400 Sight Range 16 Robot Scan Range 20 Terrain Scan Density 10 Armor Coverage 150 Evasion (%) 40 Melee Accuracy 5 Core Analysis 6 Recoil Reduction 4 Item Schematics ----------------- None Robot Schematics ------------------ None Fabricated ------------ Nothing Alien Tech Used ----------------- None Achievements -------------- None Challenges ------------ None Game ------ Seed NeutrinoBeamRedistributor Manual? 0 Play Time 00:39:07 Cumulative 3.9 hours Start 2024.10.17 @ 22:13:08 End 2024.10.18 @ 22:27:57 Sessions 5 Manual Loads 0 Difficulty Rogue Special Mode None Game No. 6 Rogue 4 Adventurer 2 Explorer 0 Win Type - Total 0 Types 0/0/0/0/0/0/0/0/0 Lore% 2 Gallery% 10 Achievement% 8 Wizard Run 0 Options --------- Layout 2 ASCII 0 Keyboard 1 Movement Numpad Keybinds 0 Fullscreen 2 Font 24/Proggy Map View 50x44 Zoom Use 0% Tactical HUD 1 Map Filters NONE Filters NONE Steam 1 RUN: f22ddb28-e348-47f5-bb37-6008d9e2bcb3